lending/lending_fUSD_20240411
["ID","MTS","AMOUNT","RATE_DAILY","PERIOD"]
[322116224,1712801443816,-635.8484673,0.00020999,2]
[322116225,1712801443824,-5701.31135193,0.00021,2]
[322116229,1712801445876,-909.18055416,0.00021,2]
[322116230,1712801445933,-8821.24884357,0.00021,2]
[322116231,1712801445944,-10041.89190664,0.00021,2]
[322116232,1712801446046,-514.22186532,0.00021,2]
[322116233,1712801446154,-1227.80048853,0.00021,2]
[322116234,1712801457585,193.74489991,0.00018899,2]
[322116235,1712801548274,561.48,0.00017874,2]
[322116236,1712801593196,16586.8572,0.00018997,2]
[322116237,1712801722270,7487.77407223,0.00018997,2]
[322116238,1712801736196,7487.77407223,0.00018997,2]
[322116239,1712801752195,7487.77407223,0.00018997,2]
[322116240,1712801770433,7487.77407223,0.00018997,2]
[322116241,1712801795914,7487.77407223,0.00018997,2]
[322116242,1712801815870,7487.77407223,0.00018997,2]
[322116243,1712801835865,4308.04787462,0.00018997,2]
[322116244,1712801866469,617.711866,0.00018977,2]
[322116245,1712802074837,544.98,0.00017736,2]
[322116246,1712802393880,166.15964522,0.00018939,2]
[322116252,1712802533232,4107.3153,0.00018974,2]
[322116260,1712802601146,557.82,0.00017705,2]
[322116270,1712802632958,-304.75740355,0.00019022,2]
[322116271,1712802632972,-150.0,0.00019023,2]
[322116272,1712802632989,-150.0,0.00019023,2]
[322116273,1712802633003,-15.24259645,0.00019024,2]
[322116274,1712802633072,-794.41908969,0.00019024,2]
[322116275,1712802633088,-312.85355611,0.00019024,2]
[322116276,1712802633103,-3752.33171115,0.00019024,2]
[322116277,1712802633118,-233.47410022,0.00019025,2]
[322116278,1712802633132,-486.39302872,0.00019025,2]
[322116279,1712802633148,-1242.10018582,0.00019029,2]
[322116281,1712802633164,-538.49464039,0.00019042,2]
[322116282,1712802633178,-166.15964522,0.00019331,2]
[322116283,1712802633194,-392.62,0.00019539,2]
[322116284,1712802633209,-499.99,0.00019539,2]
[322116285,1712802633224,-1000.0,0.00019559,2]
[322116286,1712802633240,-316.17,0.00019559,2]
[322116287,1712802633257,-23900.0,0.00019572,2]
[322116288,1712802633275,-1266.29,0.00019584,2]
[322116289,1712802633291,-500.0,0.00019584,2]
[322116290,1712802633309,-1412.6,0.00019621,2]
[322116291,1712802633324,-200.0,0.00019628,2]
[322116292,1712802633340,-200.0,0.00019672,2]
[322116293,1712802633354,-172.12,0.000197,2]
[322116294,1712802633370,-166.15964522,0.00019723,2]
[322116295,1712802633385,-9837.13742996,0.0001976,2]
[322116296,1712802633399,-150.47,0.00019778,2]
[322116297,1712802633414,-557.82,0.00019968,2]
[322116298,1712802633430,-317.3,0.0002,2]
[322116299,1712802633446,-1360.80888463,0.0002,2]
[322116300,1712802633460,-500.0,0.0002,2]
[322116301,1712802633477,-172.12,0.00020043,2]
[322116302,1712802633491,-166.15964522,0.00020116,2]
[322116303,1712802633507,-172.12,0.00020385,2]
[322116304,1712802633523,-166.15964522,0.00020508,2]
[322116305,1712802633536,-2215.07,0.00020548,2]
[322116306,1712802633546,-665.25,0.00020562,2]
[322116307,1712802633555,-665.25,0.00020568,2]
[322116308,1712802633744,-665.25,0.00020573,2]
[322116309,1712802633824,-665.25,0.00020578,2]
[322116310,1712802633840,-665.25,0.00020584,2]
[322116311,1712802633849,-665.25,0.00020589,2]
[322116312,1712802633860,-665.25,0.00020595,2]
[322116313,1712802633870,-665.25,0.000206,2]
[322116314,1712802633881,-665.25,0.00020606,2]
[322116315,1712802633891,-665.25,0.00020611,2]
[322116316,1712802633900,-665.25,0.00020616,2]
[322116317,1712802633910,-665.25,0.00020622,2]
[322116318,1712802633919,-665.25,0.00020627,2]
[322116319,1712802633928,-665.25,0.00020633,2]
[322116320,1712802633937,-665.25,0.00020638,2]
[322116321,1712802633947,-665.25,0.00020644,2]
[322116322,1712802633956,-665.25,0.00020649,2]
[322116323,1712802633965,-665.25,0.00020654,2]
[322116324,1712802633975,-665.25,0.0002066,2]
[322116325,1712802633985,-665.25,0.00020665,2]
[322116326,1712802633997,-4392.64826636,0.000207,2]
[322116327,1712802634158,-285.53403364,0.000207,2]
[322116328,1712802634168,-255.6275,0.000207,2]
[322116329,1712802634178,-172.12,0.00020727,2]
[322116330,1712802634187,-251.85360787,0.00020788,2]
[322116331,1712802634197,-227.57700412,0.00020788,2]
[322116332,1712802634206,-159.15262663,0.0002079,2]
[322116333,1712802634215,-399.18117348,0.0002079,2]
[322116334,1712802634224,-399.18117348,0.0002079,2]
[322116335,1712802634234,-399.18117348,0.0002079,2]
[322116336,1712802634242,-399.18117348,0.0002079,2]
[322116337,1712802634252,-399.18117348,0.0002079,2]
[322116338,1712802634262,-399.18117348,0.0002079,2]
[322116339,1712802634271,-399.18117348,0.0002079,2]
[322116340,1712802634280,-399.18117348,0.0002079,2]
[322116341,1712802634289,-331.7499,0.00020799,2]
[322116342,1712802634298,-29751.3499,0.000208,2]
[322116343,1712802634307,-5826.73955601,0.000208,2]
[322116344,1712802634317,-399.18117348,0.00020873,2]
[322116345,1712802634326,-399.18117348,0.00020873,2]
[322116346,1712802634335,-399.18117348,0.00020873,2]
[322116347,1712802634345,-399.18117348,0.00020873,2]
[322116348,1712802634354,-399.18117348,0.00020873,2]
[322116349,1712802634363,-399.18117348,0.00020883,2]
[322116350,1712802634372,-8193.5328131,0.00020883,2]
[322116351,1712802634382,-399.18117348,0.00020888,2]
[322116352,1712802634391,-399.18117348,0.00020888,2]
[322116353,1712802634400,-399.18117348,0.00020888,2]
[322116354,1712802634410,-399.18117348,0.00020888,2]
[322116355,1712802634419,-399.18117348,0.00020888,2]
[322116356,1712802634429,-399.18117348,0.00020888,2]
[322116357,1712802634438,-399.18117348,0.00020888,2]
[322116358,1712802634447,-399.18117348,0.00020888,2]
[322116359,1712802634456,-399.18117348,0.00020888,2]
[322116360,1712802634466,-399.18117348,0.00020889,2]
[322116361,1712802634475,-399.18117348,0.00020889,2]
[322116362,1712802634484,-399.18117348,0.00020889,2]
[322116363,1712802634493,-399.18117348,0.0002089,2]
[322116364,1712802634503,-399.18117348,0.0002089,2]
[322116365,1712802634512,-399.18117348,0.0002089,2]
[322116366,1712802634521,-399.18117348,0.0002089,2]
[322116367,1712802634531,-399.18117348,0.0002089,2]
[322116368,1712802634540,-1000.0,0.00020893,2]
[322116369,1712802634550,-321.4,0.00020895,2]
[322116370,1712802634560,-6209.85493494,0.00020898,2]
[322116371,1712802634570,-6981.06273439,0.00020898,2]
[322116372,1712802634580,-840.79526799,0.00020899,2]
[322116373,1712802634590,-840.79526793,0.00020899,2]
[322116374,1712802634599,-840.79526793,0.00020899,2]
[322116375,1712802634609,-840.79526793,0.00020899,2]
[322116376,1712802634619,-840.79526793,0.000209,2]
[322116377,1712802634628,-840.79526793,0.000209,2]
[322116378,1712802634638,-840.79526793,0.000209,2]
[322116379,1712802634648,-213.0,0.000209,2]
[322116380,1712802634657,-584.91686444,0.000209,2]
[322116381,1712802634666,-150.48469749,0.000209,2]
[322116382,1712802634676,-637.9405,0.000209,2]
[322116383,1712802634685,-356.14086376,0.000209,2]
[322116384,1712802634694,-166.15964522,0.000209,2]
[322116385,1712802634704,-840.79526793,0.000209,2]
[322116386,1712802634713,-154.13732049,0.000209,2]
[322116387,1712802634723,-1307.04182731,0.000209,2]
[322116388,1712802634732,-210.0,0.00020925,2]
[322116389,1712802634741,-210.0,0.00020925,2]
[322116390,1712802634754,-399.18117348,0.00020978,2]
[322116391,1712802634763,-399.18117348,0.00020978,2]
[322116392,1712802634772,-399.18117348,0.00020978,2]
[322116393,1712802634781,-399.18117348,0.00020979,2]
[322116394,1712802634790,-399.18117348,0.00020979,2]
[322116395,1712802634799,-399.18117348,0.00020979,2]
[322116396,1712802634809,-399.18117348,0.00020979,2]
[322116397,1712802634818,-399.18117348,0.00020979,2]
[322116398,1712802634827,-399.18117348,0.00020979,2]
[322116399,1712802634837,-399.18117348,0.00020979,2]
[322116400,1712802634846,-399.18117348,0.00020979,2]
[322116401,1712802634855,-399.18117348,0.00020979,2]
[322116402,1712802634864,-399.18117348,0.00020979,2]
[322116403,1712802634873,-399.18117348,0.00020979,2]
[322116404,1712802634882,-399.18117348,0.00020979,2]
[322116405,1712802634892,-399.18117348,0.00020983,2]
[322116406,1712802634901,-399.18117348,0.00020983,2]
[322116407,1712802634911,-399.18117348,0.00020983,2]
[322116408,1712802634921,-399.18117348,0.00020983,2]
[322116409,1712802634930,-399.18117348,0.00020983,2]
[322116410,1712802634939,-399.18117348,0.00020983,2]
[322116411,1712802634948,-399.18117348,0.00020987,2]
[322116412,1712802634957,-399.18117348,0.00020987,2]
[322116413,1712802634966,-399.18117348,0.00020987,2]
[322116414,1712802634976,-399.18117348,0.00020987,2]
[322116415,1712802634985,-399.18117348,0.00020987,2]
[322116416,1712802634996,-399.18117348,0.00020987,2]
[322116417,1712802635005,-399.18117348,0.00020987,2]
[322116418,1712802635014,-399.18117348,0.00020987,2]
[322116419,1712802635025,-399.18117348,0.00020987,2]
[322116420,1712802635035,-399.18117348,0.00020987,2]
[322116421,1712802635045,-399.18117348,0.00020987,2]
[322116422,1712802635054,-399.18117348,0.00020987,2]
[322116423,1712802635065,-399.18117348,0.00020987,2]
[322116424,1712802635074,-399.18117348,0.00020987,2]
[322116425,1712802635086,-399.18117348,0.00020988,2]
[322116426,1712802635095,-399.18117348,0.00020988,2]
[322116427,1712802635105,-399.18117348,0.00020988,2]
[322116428,1712802635114,-399.18117348,0.00020988,2]
[322116429,1712802635123,-399.18117348,0.00020988,2]
[322116430,1712802635133,-399.18117348,0.00020988,2]
[322116431,1712802635142,-399.18117348,0.00020988,2]
[322116432,1712802635152,-399.18117348,0.00020988,2]
[322116433,1712802635161,-399.18117348,0.00020988,2]
[322116434,1712802635172,-399.18117348,0.00020988,2]
[322116435,1712802635182,-399.18117348,0.00020988,2]
[322116436,1712802635191,-162.75,0.00020989,2]
[322116437,1712802635200,-399.18117348,0.00020989,2]
[322116438,1712802635210,-399.18117348,0.00020989,2]
[322116439,1712802635222,-399.18117348,0.00020989,2]
[322116440,1712802635231,-399.18117348,0.00020989,2]
[322116441,1712802635241,-399.18117348,0.00020989,2]
[322116442,1712802635251,-399.18117348,0.00020989,2]
[322116443,1712802635260,-399.18117348,0.00020989,2]
[322116444,1712802635270,-399.18117348,0.00020989,2]
[322116445,1712802635284,-399.18117348,0.00020989,2]
[322116446,1712802635294,-399.18117348,0.00020989,2]
[322116447,1712802635304,-399.18117348,0.00020989,2]
[322116448,1712802635314,-399.18117348,0.00020989,2]
[322116449,1712802635324,-399.18117348,0.00020989,2]
[322116450,1712802635334,-399.18117348,0.00020989,2]
[322116451,1712802635344,-399.18117348,0.00020989,2]
[322116452,1712802635355,-399.18117348,0.00020989,2]
[322116453,1712802635365,-162.75,0.0002099,2]
[322116454,1712802635376,-162.75,0.0002099,2]
[322116455,1712802635386,-162.75,0.0002099,2]
[322116456,1712802635395,-162.75,0.0002099,2]
[322116457,1712802635405,-162.75,0.0002099,2]
[322116458,1712802635415,-162.75,0.0002099,2]
[322116459,1712802635425,-162.75,0.0002099,2]
[322116460,1712802635435,-162.75,0.0002099,2]
[322116461,1712802635445,-193.74498044,0.0002099,2]
[322116462,1712802635454,-3996.640173,0.00020993,2]
[322116463,1712802635464,-1381.2445287,0.00020993,2]
[322116464,1712802635474,-3645.346,0.00020993,2]
[322116465,1712802635484,-314.041111,0.00020996,4]
[322116466,1712802635493,-314.041111,0.00020996,4]
[322116467,1712802635505,-314.041111,0.00020996,4]
[322116468,1712802635515,-322.97664406,0.00020997,2]
[322116469,1712802635525,-882.77,0.00020997,2]
[322116470,1712802635534,-177.64149954,0.00020997,2]
[322116471,1712802635544,-314.041111,0.00020997,4]
[322116472,1712802635555,-314.041111,0.00020997,4]
[322116473,1712802635564,-225.041111,0.00020997,4]
[322116474,1712802635575,-18042.36063752,0.00020997,2]
[322116475,1712802635584,-155.43015017,0.00020997,2]
[322116476,1712802635594,-314.041111,0.00020997,4]
[322116477,1712802635603,-314.041111,0.00020997,4]
[322116478,1712802635614,-1631.73024261,0.00020998,2]
[322116479,1712802635623,-155.49750427,0.00020998,2]
[322116480,1712802635633,-207.95242948,0.00020998,2]
[322116481,1712802635643,-156.56105793,0.00020998,2]
[322116482,1712802635652,-591.48651858,0.00020998,2]
[322116483,1712802635662,-1052.6018316,0.00020998,2]
[322116484,1712802635671,-3503.49917893,0.00020998,2]
[322116485,1712802635681,-597.80014981,0.00020998,2]
[322116486,1712802635691,-1065.50622105,0.00020998,2]
[322116487,1712802635701,-1083.18709187,0.00020998,2]
[322116488,1712802635711,-357.69101425,0.00020998,2]
[322116489,1712802635724,-229.52615658,0.00020998,2]
[322116490,1712802635734,-787.68203396,0.00020998,2]
[322116491,1712802635745,-155.36334585,0.00020998,2]
[322116492,1712802635755,-2357.61869446,0.00020998,2]
[322116493,1712802635764,-378.00208765,0.00020998,2]
[322116494,1712802635773,-314.041111,0.00020998,4]
[322116495,1712802635783,-314.041111,0.00020998,4]
[322116496,1712802635793,-314.041111,0.00020998,4]
[322116497,1712802635804,-314.041111,0.00020998,4]
[322116498,1712802635814,-314.041111,0.00020998,4]
[322116499,1712802635823,-314.041111,0.00020998,4]
[322116500,1712802635834,-19514.13577119,0.00020999,2]
[322116501,1712802635850,-712.60927417,0.00020999,2]
[322116511,1712802638781,-475.52071501,0.00019021,2]
[322116512,1712802638792,-167.281729,0.00020274,2]
[322116513,1712802638803,-399.18117348,0.00020989,2]
[322116514,1712802638814,-399.18117348,0.00020989,2]
[322116515,1712802638824,-399.18117348,0.00020989,2]
[322116516,1712802638835,-399.18117348,0.00020989,2]
[322116517,1712802638849,-399.18117348,0.00020989,2]
[322116518,1712802638860,-399.18117348,0.00020989,2]
[322116519,1712802638871,-399.18117348,0.00020989,2]
[322116520,1712802638881,-8874.4663505,0.00020999,2]
[322116521,1712802638894,-2143.8,0.00020999,2]
[322116522,1712802638908,-2630.22860414,0.00020999,2]
[322116523,1712802638918,-918.28010803,0.00020999,2]
[322116524,1712802638928,-231.75198278,0.00020999,2]
[322116525,1712802638939,-196.61034479,0.00020999,2]
[322116526,1712802638949,-155.34576826,0.00020999,2]
[322116527,1712802638960,-3639.80984815,0.00020999,2]
[322116528,1712802638973,-1900.0,0.00020999,2]
[322116529,1712802638986,-6.89538755,0.00020999,2]
[322116530,1712802638998,-206.54279692,0.00020999,2]
[322116531,1712802639016,-1095.70643267,0.00020999,2]
[322116532,1712802640122,-2475.50779042,0.00020999,2]
[322116533,1712802640132,-236.96956951,0.00020999,2]
[322116534,1712802640141,-309.00198423,0.00020999,2]
[322116535,1712802640150,-2116.2922963,0.00020999,2]
[322116536,1712802640160,-155.0,0.00020999,2]
[322116537,1712802640170,-197.68276543,0.00020999,2]
[322116538,1712802640179,-155.89577228,0.00020999,2]
[322116539,1712802640189,-155.49484393,0.00020999,2]
[322116540,1712802640198,-23692.76128431,0.00020999,2]
[322116541,1712802640210,-344.43181744,0.00020999,2]
[322116542,1712802640221,-4606.2656051,0.00020999,2]
[322116543,1712802640241,-3565.15589406,0.00020999,2]
[322116544,1712802640260,-469.01293104,0.00020999,2]
[322116555,1712802643648,-2805.76347956,0.00020999,2]
[322116556,1712802643675,-1226.05669604,0.00020999,2]
[322116557,1712802646201,-1935.73205911,0.00020998,2]
[322116558,1712802646210,-17367.99990714,0.00020999,2]
[322116559,1712802646222,-24639.41964228,0.00020999,2]
[322116560,1712802646232,-314.041111,0.00020999,4]
[322116561,1712802646241,-314.041111,0.00020999,4]
[322116562,1712802646250,-314.041111,0.00020999,4]
[322116563,1712802646260,-2774.57804071,0.00020999,2]
[322116564,1712802646270,-500.0,0.00020999,2]
[322116565,1712802646279,-500.0,0.00020999,2]
[322116566,1712802646289,-499.00556671,0.00020999,2]
[322116567,1712802646298,-5154.8734173,0.00021,2]
[322116568,1712802646337,-573.71192658,0.00021,2]
[322116569,1712802646349,-691.73631301,0.00021,2]
[322116570,1712802671760,1012.859,0.00018933,2]
[322116571,1712803089474,613.59,0.00017876,2]
[322116573,1712803624416,582.91,0.00017587,2]
[322116681,1712803832218,-261.62382088,0.00019374,2]
[322116682,1712803832231,-737.05250174,0.00019374,2]
[322116683,1712803832274,-812.24927738,0.00019374,2]
[322116684,1712803832283,-487.12072145,0.00019474,2]
[322116685,1712803832293,-426.28826774,0.00019474,2]
[322116686,1712803832331,-60.83245371,0.00019474,2]
[322116687,1712803832341,-332.87183809,0.00019474,2]
[322116688,1712803832445,-154.24888336,0.00019474,2]
[322116689,1712803832455,-487.12072145,0.00019474,2]
[322116690,1712803832466,-487.12072145,0.00019474,2]
[322116691,1712803832476,-150.0,0.00019475,2]
[322116692,1712803832485,-537.63984287,0.00019496,2]
[322116693,1712803832495,-736.11467578,0.00019497,2]
[322116694,1712803832505,-800.0,0.00019498,2]
[322116695,1712803832515,-8048.39,0.00019509,2]
[322116696,1712803832525,-154.86,0.00019645,2]
[322116697,1712803832535,-527.51,0.00019736,2]
[322116698,1712803832545,-1412.03,0.00019736,2]
[322116699,1712803832555,-158.64,0.0001977,2]
[322116700,1712803832565,-6791.92,0.0001977,2]
[322116701,1712803832575,-158.64,0.00019781,2]
[322116702,1712803832584,-499.99,0.00019781,2]
[322116703,1712803832594,-158.64,0.00019792,2]
[322116704,1712803832603,-158.64,0.00019803,2]
[322116705,1712803832613,-200.0,0.00019812,2]
[322116706,1712803832623,-150.99,0.00019812,2]
[322116707,1712803832633,-158.64,0.00019814,2]
[322116708,1712803832642,-154.86,0.00019815,2]
[322116709,1712803832652,-158.64,0.00019825,2]
[322116710,1712803832662,-158.64,0.00019836,2]
[322116711,1712803832672,-158.64,0.00019847,2]
[322116712,1712803832681,-582.91,0.00019851,2]
[322116713,1712803832691,-158.64,0.00019858,2]
[322116714,1712803832700,-158.64,0.00019869,2]
[322116715,1712803832710,-154.86,0.00019986,2]
[322116716,1712803832720,-177.17,0.00020047,2]
[322116717,1712803832729,-200.0,0.00020068,2]
[322116718,1712803832739,-154.86,0.00020156,2]
[322116719,1712803832748,-154.86,0.00020327,2]
[322116720,1712803832758,-172.48,0.00020361,2]
[322116721,1712803832768,-1000.0,0.000204,2]
[322116722,1712803832777,-699.01,0.00020419,2]
[322116723,1712803832787,-165.636972,0.00020454,2]
[322116724,1712803832797,-154.86,0.00020498,2]
[322116725,1712803832806,-528.0,0.00020547,2]
[322116726,1712803832816,-228.4541492,0.00020572,2]
[322116727,1712803832825,-154.86,0.00020668,2]
[322116728,1712803832835,-11147.27242432,0.00020698,2]
[322116729,1712803832845,-17915.82634007,0.00020698,2]
[322116730,1712803832854,-159.15262663,0.0002079,2]
[322116731,1712803832863,-779.18451,0.0002079,2]
[322116732,1712803832873,-545.5748,0.00020793,2]
[322116733,1712803832883,-167.36,0.00020799,2]
[322116734,1712803832892,-171.100291,0.00020822,2]
[322116735,1712803832902,-1000.0,0.00020831,2]
[322116736,1712803832911,-500.0,0.00020831,2]
[322116737,1712803832922,-1000.0,0.00020832,2]
[322116738,1712803832932,-500.0,0.00020832,2]
[322116739,1712803832941,-200.0,0.00020832,2]
[322116740,1712803832951,-1000.0,0.00020832,2]
[322116741,1712803832962,-1000.0,0.00020832,2]
[322116742,1712803832971,-339.19186187,0.00020832,2]
[322116743,1712803832984,-160.80813813,0.00020832,2]
[322116744,1712803832994,-137.7940133,0.00020832,2]
[322116745,1712803833015,-362.2059867,0.00020832,2]
[322116746,1712803833024,-47.60941486,0.00020839,2]
[322116747,1712803833036,-1429.47838514,0.00020839,2]
[322116748,1712803833046,-14599.359,0.00020889,2]
[322116749,1712803833056,-3726.1466,0.00020893,2]
[322116750,1712803833066,-7911.20619879,0.00020896,2]
[322116751,1712803833076,-2169.7143,0.000209,2]
[322116752,1712803833086,-9216.08931102,0.000209,2]
[322116753,1712803833095,-285.75356118,0.000209,2]
[322116754,1712803833105,-4233.1234,0.000209,2]
[322116755,1712803833114,-165.636972,0.000209,2]
[322116756,1712803833124,-7500.0,0.000209,2]
[322116757,1712803833133,-150.48469749,0.000209,2]
[322116758,1712803833144,-5617.90702516,0.000209,2]
[322116759,1712803833153,-702.17629812,0.000209,2]
[322116760,1712803833163,-1240.0,0.000209,2]
[322116761,1712803833172,-3100.34253498,0.000209,2]
[322116762,1712803833182,-644.07357158,0.000209,2]
[322116763,1712803833192,-644.07357159,0.000209,2]
[322116764,1712803833201,-190.93104292,0.0002099,2]
[322116765,1712803833212,-795.09337115,0.00020997,2]
[322116766,1712803833221,-601.2065756,0.00020997,2]
[322116767,1712803833231,-305.13754164,0.00020997,2]
[322116768,1712803833240,-833.99550894,0.00020997,2]
[322116769,1712803833250,-160.30289893,0.00020997,2]
[322116770,1712803833259,-314.041111,0.00020997,4]
[322116771,1712803833269,-314.041111,0.00020997,4]
[322116772,1712803833279,-314.041111,0.00020997,4]
[322116773,1712803833288,-6209.85493494,0.00020998,2]
[322116774,1712803833298,-193.0680829,0.00020998,2]
[322116775,1712803833308,-860.82370888,0.00020998,2]
[322116776,1712803833318,-393.49215836,0.00020998,2]
[322116777,1712803833327,-155.0,0.00020998,2]
[322116778,1712803833337,-2350.74431941,0.00020998,2]
[322116779,1712803833347,-314.041111,0.00020998,4]
[322116780,1712803833358,-314.041111,0.00020998,4]
[322116781,1712803833368,-314.041111,0.00020998,4]
[322116782,1712803833378,-314.041111,0.00020998,4]
[322116783,1712803833387,-263.17865609,0.00020999,2]
[322116784,1712803833398,-487.44129817,0.00020999,2]
[322116785,1712803833408,-1387.28902035,0.00020999,2]
[322116786,1712803833417,-314.041111,0.00020999,4]
[322116787,1712803833427,-314.041111,0.00020999,4]
[322116788,1712803833438,-314.041111,0.00020999,4]
[322116789,1712803833448,-314.041111,0.00020999,4]
[322116790,1712803833459,-61174.74778887,0.00021,2]
[322116791,1712803833472,-71068.61718245,0.00021,2]
[322116792,1712803833498,-18554.06662655,0.00021,2]
[322116793,1712803833511,-273.63923608,0.00021,2]
[322116794,1712803833523,-586.85226721,0.00021,2]
[322116820,1712803838667,-1373.92902085,0.00021,2]
[322116821,1712803838679,-121786.23004897,0.00021,2]
[322116822,1712803838690,-13231.58483698,0.00021,2]
[322116828,1712803840205,-300.0,0.00020999,2]
[322116829,1712803840314,-393.64451018,0.00020999,2]
[322116830,1712803840323,-142.63017691,0.00021,2]
[322116831,1712803840543,-1475.06565767,0.00021,2]
[322116832,1712803840556,-2132.89339885,0.00021,2]
[322116833,1712803840567,-382.80771759,0.00021,2]
[322116865,1712803843281,-346.82225509,0.00020999,2]
[322116866,1712803843291,-324.5524364,0.00021,2]
[322116867,1712803843604,-514.01,0.00021,2]
[322116868,1712803843719,-5307.88125654,0.00021,2]
[322116869,1712803843731,-300.0,0.00021,2]
[322117019,1712803846518,-31079.56907044,0.00021,2]
[322117020,1712803846574,-5879.0049,0.00021,2]
[322117086,1712803872191,6182.18875462,0.000154,2]
[322117087,1712803881268,536.09981349,9e-05,2]
[322117088,1712803886918,437.60920729,0.00018,2]
[322117089,1712803899588,3697.08093297,0.00011,2]
[322117090,1712803908626,14601.61590718,0.00018,2]
[322117091,1712803916677,4888.17870371,6.94e-05,2]
[322117092,1712803917205,1443.14125279,0.0002,30]
[322117094,1712803926390,6868.74947631,0.00032799,120]
[322117095,1712803985188,94435.97341605,0.000189,2]
[322117096,1712804069748,2203.61754782,0.00015,2]
[322117097,1712804116412,524.61,0.00018303,2]
[322117098,1712804199896,3003.0,0.0003,25]
[322117099,1712804400190,178.54,0.00015965,2]
[322117100,1712804408656,280.14044588,0.00015885,2]
[322117101,1712804448617,952.22659535,0.00015091,2]
[322117102,1712804450807,179.35267513,0.00015885,2]
[322117103,1712804450909,407.81986227,0.00015885,2]
[322117104,1712804453198,17473.45036345,0.00015885,2]
[322117105,1712804453846,360.64469906,0.00015885,2]
[322117106,1712804454217,323.37069927,0.00015885,2]
[322117107,1712804455164,365.17506551,0.00015885,2]
[322117108,1712804456052,287.94852991,0.00015885,2]
[322117109,1712804458799,343.51277695,0.00015885,2]
[322117110,1712804459165,941.51185046,0.00015885,2]
[322117111,1712804462699,952.22659535,0.00015091,2]
[322117112,1712804468230,351.34650289,0.00015885,2]
[322117113,1712804468509,179.35267513,0.00015885,2]
[322117114,1712804468724,409.90052654,0.00015885,2]
[322117115,1712804470026,287.94852991,0.00015885,2]
[322117116,1712804470570,365.17506551,0.00015885,2]
[322117117,1712804471854,412.06464563,0.00015885,2]
[322117118,1712804475200,941.51185046,0.00015885,2]
[322117119,1712804476748,343.51277695,0.00015885,2]
[322117120,1712804482632,952.22659535,0.00015091,2]
[322117121,1712804484513,179.35267513,0.00015885,2]
[322117122,1712804486017,389.63062295,0.00015885,2]
[322117123,1712804489182,954.8159869,0.00015885,2]
[322117124,1712804490583,280.18249221,0.00015885,2]
[322117125,1712804496746,468.04708159,0.00015885,2]
[322117126,1712804500637,277.14808385,0.00015091,2]
[322117127,1712804502513,242.06824265,0.00015885,2]
[322117128,1712804556311,171.61,0.00016712,2]
[322117129,1712804721342,376.75321615,0.00032792,30]
[322117131,1712804778694,542.29,0.0001771,2]
[322117179,1712805032524,-434.63382932,0.00019352,2]
[322117180,1712805032540,-59.05132068,0.00019452,2]
[322117181,1712805032559,-94.93894132,0.00019452,2]
[322117182,1712805032575,-463.633,0.00019594,2]
[322117183,1712805032590,-116.07048968,0.00019661,2]
[322117184,1712805032711,-42.85721247,0.00019661,2]
[322117185,1712805032726,-653.13353148,0.00019678,2]
[322117190,1712805032850,-447.38646852,0.00019678,2]
[322117192,1712805032866,-15.66353148,0.00019683,2]
[322117193,1712805032902,-1076.43646852,0.00019683,2]
[322117194,1712805032920,-3692.21,0.00019694,2]
[322117195,1712805032937,-195.97,0.00019734,2]
[322117196,1712805032954,-474.9,0.00019736,2]
[322117197,1712805032971,-300.0,0.00019758,2]
[322117198,1712805032987,-150.0,0.00019758,2]
[322117199,1712805033004,-1466.56656268,0.00019759,2]
[322117200,1712805033023,-684.71908266,0.00019759,2]
[322117201,1712805033043,-715.29,0.00019759,2]
[322117202,1712805033069,-6269.42089981,0.00019759,2]
[322117212,1712805038583,-5040.0249144,0.00019759,2]
[322117213,1712805038597,-6067.51922163,0.00019759,2]